fUSD/lending_fUSD_20250826
["ID","MTS","AMOUNT","RATE_DAILY","PERIOD"]
[381438993,1756198238984,-574.74,0.00020059,2]
[381438994,1756198238994,-574.74,0.00020067,2]
[381438996,1756198239004,-574.74,0.00020074,2]
[381438998,1756198239014,-574.74,0.00020081,2]
[381439000,1756198239023,-574.74,0.00020089,2]
[381439002,1756198239033,-574.74,0.00020096,2]
[381439004,1756198239043,-574.74,0.00020104,2]
[381439006,1756198239053,-574.74,0.00020111,2]
[381439008,1756198239063,-574.74,0.00020118,2]
[381439009,1756198239072,-574.74,0.00020126,2]
[381439011,1756198239083,-574.74,0.00020133,2]
[381439013,1756198239092,-574.74,0.0002014,2]
[381439015,1756198239103,-574.74,0.00020148,2]
[381439017,1756198239114,-419.48,0.00020187,2]
[381439019,1756198239123,-1500.0,0.00020189,2]
[381439021,1756198239133,-167.74,0.00020284,2]
[381439023,1756198239144,-175.58,0.00020507,2]
[381439025,1756198239155,-1000.0,0.00020561,2]
[381439026,1756198239165,-555.63329886,0.00020767,2]
[381439028,1756198239174,-168.08021093,0.00020819,2]
[381439030,1756198239184,-338.61257298,0.00020819,2]
[381439032,1756198239194,-259.45942482,0.00020819,2]
[381439034,1756198239203,-500.0,0.00020819,2]
[381439036,1756198239213,-277.82536803,0.00020819,2]
[381439038,1756198239224,-1794.0,0.0002082,2]
[381439040,1756198239234,-430.74,0.00021007,2]
[381439042,1756198239244,-300.0,0.00021202,2]
[381439043,1756198239254,-1256.0,0.00021249,2]
[381439045,1756198239263,-2031.0,0.00021249,2]
[381439047,1756198239274,-926.0,0.00021249,2]
[381439049,1756198239284,-3374.0,0.00021249,2]
[381439051,1756198239295,-1658.0,0.00021249,2]
[381439053,1756198239307,-1298.0,0.00021249,2]
[381439055,1756198239317,-599.0,0.00021249,2]
[381439057,1756198239326,-571.777,0.00021249,2]
[381439059,1756198239335,-258.763,0.00021249,2]
[381439061,1756198239345,-4155.0,0.00021249,2]
[381439062,1756198239355,-718.0,0.00021249,2]
[381439064,1756198239364,-6146.0,0.00021249,2]
[381439066,1756198239375,-21104.0,0.00021249,2]
[381439068,1756198239384,-6232.39,0.0002137,2]
[381439070,1756198239394,-200.0,0.0002171,7]
[381439072,1756198239404,-2752.62820145,0.000218,2]
[381439074,1756198239414,-200.0,0.0002181,7]
[381439076,1756198239424,-500.0,0.00021891,2]
[381439077,1756198239434,-1112.65,0.000219,2]
[381439079,1756198239444,-200.0,0.0002191,7]
[381439081,1756198239454,-5000.0,0.00021918,2]
[381439083,1756198239464,-212.1,0.00022,2]
[381439085,1756198239474,-430.74,0.00022007,2]
[381439087,1756198239484,-2204.57,0.000221,2]
[381439089,1756198239494,-211.2,0.00022281,2]
[381439091,1756198239504,-2500.0,0.00022286,7]
[381439093,1756198239513,-160.0,0.00022291,2]
[381439095,1756198239523,-160.0,0.00022291,2]
[381439096,1756198239532,-458.7662338,0.00022291,2]
[381439098,1756198239542,-844.63891918,0.00022292,2]
[381439100,1756198239552,-2500.0,0.00022295,7]
[381439102,1756198239562,-2500.0,0.00022303,7]
[381439104,1756198239571,-2500.0,0.00022312,7]
[381439106,1756198239580,-458.7662338,0.00022312,7]
[381439108,1756198239590,-319.1714,0.00022318,2]
[381439109,1756198239599,-2500.0,0.00022321,7]
[381439111,1756198239610,-2500.0,0.0002233,7]
[381439113,1756198239621,-2500.0,0.00022339,7]
[381439115,1756198239631,-2500.0,0.00022347,7]
[381439117,1756198239640,-2500.0,0.00022356,7]
[381439119,1756198239650,-2500.0,0.00022365,7]
[381439121,1756198239659,-2500.0,0.00022374,7]
[381439123,1756198239669,-2500.0,0.00022383,7]
[381439125,1756198239678,-2500.0,0.00022391,7]
[381439126,1756198239688,-2500.0,0.000224,7]
[381439128,1756198239699,-2500.0,0.00022409,7]
[381439130,1756198239709,-2500.0,0.00022418,7]
[381439132,1756198239718,-2500.0,0.00022427,7]
[381439134,1756198239728,-2500.0,0.00022435,7]
[381439136,1756198239738,-501.90964086,0.00022439,2]
[381439138,1756198239747,-2500.0,0.00022444,7]
[381439139,1756198239757,-2500.0,0.00022453,7]
[381439140,1756198239766,-458.7662338,0.00022453,7]
[381439141,1756198239776,-2500.0,0.00022462,7]
[381439142,1756198239785,-2500.0,0.00022471,7]
[381439143,1756198239794,-500.0,0.00022473,2]
[381439144,1756198239803,-500.0,0.00022473,2]
[381439145,1756198239813,-377.62947116,0.00022473,2]
[381439146,1756198239822,-500.0,0.00022473,2]
[381439147,1756198239831,-2500.0,0.00022479,7]
[381439148,1756198239841,-2500.0,0.00022488,7]
[381439149,1756198239850,-2500.0,0.00022497,7]
[381439150,1756198239859,-31865.23207639,0.00022499,7]
[381439151,1756198239869,-458.7662338,0.000225,7]
[381439152,1756198239883,-2500.0,0.00022506,7]
[381439153,1756198239893,-200.0,0.0002251,7]
[381439154,1756198239902,-168.63687509,0.0002251,2]
[381439155,1756198239911,-2500.0,0.00022515,7]
[381439156,1756198239921,-2500.0,0.00022523,7]
[381439157,1756198239930,-2500.0,0.00022532,7]
[381439158,1756198239940,-2500.0,0.00022541,7]
[381439159,1756198239950,-2500.0,0.0002255,7]
[381439160,1756198239960,-2500.0,0.00022559,7]
[381439161,1756198239970,-2500.0,0.00022567,7]
[381439162,1756198239980,-300.0,0.00022572,2]
[381439163,1756198239990,-2500.0,0.00022576,7]
[381439164,1756198239999,-2500.0,0.00022585,7]
[381439165,1756198240009,-743.49,0.00022603,2]
[381439166,1756198240018,-5800.0,0.00022603,2]
[381439167,1756198240028,-200.0,0.0002261,7]
[381439168,1756198240038,-5800.0,0.00022612,2]
[381439169,1756198240047,-5800.0,0.0002262,2]
[381439170,1756198240057,-5800.0,0.00022629,2]
[381439171,1756198240067,-5800.0,0.00022637,2]
[381439173,1756198240077,-5800.0,0.00022646,2]
[381439174,1756198240086,-5800.0,0.00022654,2]
[381439176,1756198240095,-5800.0,0.00022663,2]
[381439178,1756198240105,-5800.0,0.00022671,2]
[381439180,1756198240114,-500.0,0.00022673,2]
[381439182,1756198240123,-500.0,0.00022673,2]
[381439184,1756198240133,-500.0,0.00022673,2]
[381439186,1756198240143,-500.0,0.00022673,2]
[381439188,1756198240153,-500.0,0.00022673,2]
[381439190,1756198240162,-5800.0,0.0002268,2]
[381439192,1756198240172,-5800.0,0.00022688,2]
[381439194,1756198240181,-5800.0,0.00022697,2]
[381439196,1756198240192,-5800.0,0.00022705,2]
[381439198,1756198240202,-200.0,0.0002271,7]
[381439200,1756198240211,-5800.0,0.00022714,2]
[381439202,1756198240220,-5800.0,0.00022722,2]
[381439204,1756198240230,-5800.0,0.00022731,2]
[381439206,1756198240239,-5800.0,0.00022739,2]
[381439208,1756198240248,-200.0,0.0002281,7]
[381439210,1756198240257,-700.0,0.0002297,2]
[381439212,1756198240267,-700.0,0.0002297,2]
[381439214,1756198240277,-1225.52305538,0.0002297,2]
[381439216,1756198240286,-900.0,0.00023,8]
[381439218,1756198240297,-900.0,0.00023,8]
[381439220,1756198240307,-900.0,0.00023,8]
[381439222,1756198240316,-900.0,0.00023,8]
[381439224,1756198240325,-900.0,0.00023,8]
[381439226,1756198240334,-900.0,0.00023,8]
[381439228,1756198240348,-900.0,0.00023,8]
[381439230,1756198240359,-900.0,0.00023,8]
[381439232,1756198240369,-900.0,0.00023,8]
[381439234,1756198240379,-900.0,0.00023,8]
[381439236,1756198240389,-900.0,0.00023,8]
[381439238,1756198240401,-900.0,0.00023,8]
[381439240,1756198240411,-900.0,0.00023,8]
[381439242,1756198240420,-900.0,0.00023,8]
[381439244,1756198240430,-900.0,0.00023,8]
[381439246,1756198240440,-900.0,0.00023,8]
[381439248,1756198240452,-430.74,0.00023007,2]
[381439250,1756198240462,-1000.0,0.00023021,2]
[381439252,1756198240472,-244.22038366,0.00023021,2]
[381439254,1756198240482,-1000.0,0.00023021,2]
[381439256,1756198240492,-2752.62820139,0.00023114,2]
[381439258,1756198240502,-1000.0,0.00023131,2]
[381439260,1756198240512,-500.0,0.00023221,2]
[381439262,1756198240521,-1000.0,0.00023221,2]
[381439264,1756198240531,-646.33270953,0.00023221,2]
[381439266,1756198240542,-1000.0,0.000233,2]
[381439268,1756198240552,-1001.0,0.000233,3]
[381439270,1756198240562,-462.0,0.000233,3]
[381439272,1756198240572,-1000.0,0.000233,3]
[381439274,1756198240582,-2204.57,0.00023466,2]
[381439276,1756198240592,-200.0,0.0002351,7]
[381439278,1756198240603,-150.0,0.00023538,2]
[381439280,1756198240613,-820.10171359,0.0002354,2]
[381439282,1756198240623,-1045.22767418,0.00023541,2]
[381439284,1756198240632,-1270.35363477,0.00023543,2]
[381439286,1756198240642,-1495.47959536,0.00023544,2]
[381439288,1756198240652,-1720.60555596,0.00023546,2]
[381439290,1756198240661,-1945.73151655,0.00023547,2]
[381439292,1756198240672,-2170.85747714,0.00023549,2]
[381439295,1756198240682,-2395.98343773,0.0002355,2]
[381439297,1756198240692,-2621.10939832,0.00023552,2]
[381439298,1756198240701,-321552.03,0.00023562,7]
[381439300,1756198240711,-1056.72068068,0.00023568,2]
[381439302,1756198240721,-1500.0,0.00023568,2]
[381439304,1756198240731,-161.88879398,0.00023573,2]
[381439306,1756198240741,-200.0,0.0002361,7]
[381439308,1756198240750,-200.0,0.0002371,7]
[381439310,1756198240761,-920.48,0.00023726,2]
[381439312,1756198240770,-1500.0,0.00023768,2]
[381439315,1756198240780,-200.0,0.0002381,7]
[381439317,1756198240790,-200.0,0.0002391,7]
[381439319,1756198240801,-844.63891918,0.00024,7]
[381439321,1756198240810,-308.95,0.00024,2]
[381439323,1756198240820,-160.0,0.00024,7]
[381439325,1756198240831,-430.74,0.00024008,2]
[381439327,1756198240841,-1153.27828578,0.00024116,2]
[381439329,1756198240851,-624.964,0.00024249,2]
[381439331,1756198240863,-2031.0,0.00024249,2]
[381439333,1756198240875,-926.0,0.00024249,2]
[381439335,1756198240887,-3374.0,0.00024249,2]
[381439337,1756198240898,-1658.0,0.00024249,2]
[381439339,1756198240908,-1298.0,0.00024249,2]
[381439341,1756198240919,-599.0,0.00024249,2]
[381439343,1756198240934,-566.0,0.00024249,2]
[381439345,1756198240944,-4155.0,0.00024249,2]
[381439347,1756198240956,-718.0,0.00024249,2]
[381439349,1756198240967,-6146.0,0.00024249,2]
[381439351,1756198240976,-21104.0,0.00024249,2]
[381439353,1756198240986,-1819.48991129,0.00024316,2]
[381439355,1756198240995,-168.63687505,0.00024363,2]
[381439358,1756198241008,-2752.62820139,0.00024428,2]
[381439360,1756198241018,-200.0,0.0002451,7]
[381439361,1756198241028,-920.48,0.00024616,2]
[381439363,1756198241038,-1000.0,0.00024658,2]
[381439365,1756198241047,-379.88773959,0.000247,2]
[381439367,1756198241057,-5000.0,0.000247,2]
[381439369,1756198241066,-200.0,0.0002471,7]
[381439371,1756198241077,-500.0,0.000248,2]
[381439373,1756198241086,-500.0,0.000248,2]
[381439375,1756198241096,-500.0,0.000248,2]
[381439377,1756198241107,-500.0,0.000248,2]
[381439380,1756198241116,-500.0,0.000248,2]
[381439382,1756198241126,-500.0,0.000248,2]
[381439384,1756198241135,-409.47,0.000248,7]
[381439386,1756198241144,-500.0,0.000248,2]
[381439388,1756198241153,-500.0,0.000248,2]
[381439390,1756198241163,-500.0,0.000248,2]
[381439391,1756198241171,-500.0,0.000248,2]
[381439394,1756198241182,-160.0,0.000248,3]
[381439396,1756198241193,-392096.771899,0.000248,3]
[381439398,1756198241203,-458.7662338,0.000248,3]
[381439400,1756198241214,-200.0,0.0002481,7]
[381439402,1756198241223,-152.92,0.0002488,2]
[381439404,1756198241234,-163.11020025,0.0002488,2]
[381439406,1756198241244,-32674.7309916,0.0002489,3]
[381439408,1756198241254,-152.92,0.0002489,2]
[381439410,1756198241264,-178.85,0.000249,7]
[381439412,1756198241273,-291924.240045,0.000249,3]
[381439414,1756198241283,-23191.73093034,0.000249,2]
[381439416,1756198241293,-200.0,0.0002491,7]
[381439418,1756198241302,-2204.57,0.00024932,2]
[381439420,1756198241312,-200.0,0.000251,7]
[381439422,1756198241321,-204.0,0.0002525,2]
[381439424,1756198241331,-500.0,0.000253,2]
[381439426,1756198241340,-743.49,0.00025342,2]
[381439428,1756198241350,-298.0,0.00025496,3]
[381439430,1756198241360,-920.48,0.00025505,2]
[381439432,1756198241370,-32674.7309916,0.00025577,3]
[381439434,1756198241380,-24327.0200038,0.00025577,3]
[381439436,1756198241390,-844.63891918,0.00025597,3]
[381439438,1756198241400,-23191.73093013,0.00025597,3]
[381439440,1756198241410,-1000.0,0.00025702,2]
[381439442,1756198241420,-200.0,0.0002571,7]
[381439444,1756198241430,-2752.62820139,0.00025742,2]
[381439446,1756198241439,-504.0,0.00025767,2]
[381439448,1756198241449,-200.0,0.0002581,7]
[381439450,1756198241459,-427.0969966,0.00025848,2]
[381439452,1756198241468,-900.0,0.00026,27]
[381439454,1756198241479,-1057.85,0.00026,2]
[381439456,1756198241489,-409.47,0.00026,7]
[381439458,1756198241499,-204.0,0.0002608,2]
[381439460,1756198241509,-152.92,0.00026152,2]
[381439462,1756198241519,-24327.0200038,0.00026163,3]
[381439464,1756198241529,-32674.7309916,0.00026163,3]
[381439466,1756198241539,-152.92,0.00026163,2]
[381439468,1756198241550,-150.0,0.00026166,2]
[381439470,1756198241560,-705.25889234,0.00026166,2]
[381439472,1756198241570,-500.0,0.00026173,2]
[381439474,1756198241579,-500.0,0.00026173,2]
[381439476,1756198241589,-500.0,0.00026173,2]
[381439478,1756198241599,-65349.4619832,0.00026174,3]
[381439480,1756198241610,-97308.0800152,0.00026174,3]
[381439482,1756198241621,-32674.7309916,0.0002618,3]
[381439484,1756198241630,-844.63891918,0.00026183,3]
[381439487,1756198241641,-32674.7309916,0.00026183,3]
[381439489,1756198241651,-97308.0800152,0.00026183,3]
[381439491,1756198241661,-152.92,0.00026183,2]
[381439493,1756198241671,-190643.025,0.00026193,2]
[381439495,1756198241681,-4437.29842471,0.00026193,2]
[381439497,1756198241691,-168.63687505,0.00026215,2]
[381439499,1756198241702,-1077.51973177,0.00026284,2]
[381439501,1756198241712,-23191.73093013,0.00026293,5]
[381439503,1756198241722,-152.92,0.00026375,2]
[381439505,1756198241732,-24327.0200038,0.00026385,3]
[381439507,1756198241741,-920.48,0.00026395,2]
[381439509,1756198241750,-2204.57,0.00026397,7]
[381439511,1756198241760,-419.48,0.00026676,2]
[381439512,1756198241770,-238.0,0.00026685,2]
[381439515,1756198241781,-1000.0,0.00026721,2]
[381439517,1756198241791,-1000.0,0.00026721,2]
[381439519,1756198241801,-1000.0,0.00026721,2]
[381439521,1756198241811,-153.0,0.00026821,2]
[381439523,1756198241821,-238.0,0.00026854,2]
[381439561,1756198242190,-500.0,0.00026871,2]
[381439563,1756198242201,-204.0,0.0002691,2]
[381439565,1756198242211,-238.0,0.00026927,7]
[381439567,1756198242221,-238.0,0.00026957,2]
[381439569,1756198242230,-24327.0200038,0.0002697,3]
[381439571,1756198242240,-241.0,0.00026973,2]
[381439573,1756198242250,-500.0,0.00026978,2]
[381439575,1756198242259,-500.0,0.00026978,2]
[381439577,1756198242269,-500.0,0.00026978,2]
[381439579,1756198242279,-844.63891918,0.0002698,3]
[381439581,1756198242288,-23191.73093013,0.0002699,6]
[381439583,1756198242298,-2000.0,0.00027,2]
[381439585,1756198242308,-844.63891918,0.0002701,7]
[381439587,1756198242318,-500.0,0.0002701,2]
[381439589,1756198242329,-2752.62820139,0.00027056,2]
[381439591,1756198242338,-238.0,0.00027186,2]
[381439593,1756198242349,-24327.0200038,0.0002719,3]
[381439595,1756198242359,-409.47,0.000272,7]
[381439597,1756198242369,-1146.02,0.00027212,2]
[381439599,1756198242379,-379.88773956,0.00027233,2]
[381439601,1756198242388,-2031.0,0.00027249,2]
[381439603,1756198242399,-926.0,0.00027249,2]
[381439605,1756198242409,-3374.0,0.00027249,2]
[381439607,1756198242420,-1658.0,0.00027249,2]
[381439609,1756198242431,-1298.0,0.00027249,2]
[381439611,1756198242441,-599.0,0.00027249,2]
[381439613,1756198242451,-566.0,0.00027249,2]
[381439615,1756198242460,-4155.0,0.00027249,2]
[381439617,1756198242470,-718.0,0.00027249,2]
[381439619,1756198242480,-4728.376,0.00027249,2]
[381439621,1756198242489,-21104.0,0.00027249,2]
[381439623,1756198242499,-1500.0,0.00027268,2]
[381439625,1756198242510,-1502.07266514,0.00027268,2]
[381439626,1756198242521,-1500.0,0.00027268,2]
[381439628,1756198242531,-238.0,0.0002728,2]
[381439630,1756198242541,-920.48,0.00027285,2]
[381439632,1756198242551,-1057.85,0.000273,2]
[381439634,1756198242561,-238.0,0.00027327,2]
[381439636,1756198242571,-1500.0,0.00027397,16]
[381439638,1756198242589,-270.62,0.00027397,80]
[381439640,1756198242599,-300.0,0.00027397,2]
[381439642,1756198242609,-1131.21,0.00027397,16]
[381439644,1756198242620,-200.0,0.00027397,5]
[381439646,1756198242630,-1000.0,0.00027419,5]
[381439648,1756198242640,-238.0,0.0002743,2]
[381439650,1756198242650,-238.0,0.00027477,2]
[381439652,1756198242659,-1077.51973177,0.00027507,2]
[381439654,1756198242669,-1000.0,0.00027526,5]
[381439656,1756198242679,-1000.0,0.00027526,5]
[381439658,1756198242688,-1000.0,0.00027558,5]
[381439660,1756198242698,-238.0,0.00027577,2]
[381439662,1756198242708,-23191.73093013,0.00027687,8]
[381439664,1756198242717,-204.0,0.0002773,30]
[381439666,1756198242727,-212.18043798,0.00027761,7]
[381439668,1756198242736,-734.48056583,0.00027816,5]
[381439670,1756198242746,-1652.66068269,0.00027816,5]
[381439672,1756198242755,-238.0,0.00027843,2]
[381439674,1756198242764,-2204.57,0.00027863,7]
[381439676,1756198242774,-892.62702972,0.00027967,5]
[381439678,1756198242784,-1621.0,0.00028,2]
[381439680,1756198242794,-675.26174169,0.00028,2]
[381439682,1756198242803,-337.0,0.00028,2]
[381439683,1756198242813,-168.63687505,0.00028068,2]
[381439686,1756198242827,-1500.0,0.00028074,5]
[381439688,1756198242838,-1500.0,0.00028074,5]
[381439690,1756198242847,-743.49,0.00028082,2]
[381439692,1756198242858,-238.0,0.00028091,2]
[381439694,1756198242868,-502.88809515,0.00028106,5]
[381439696,1756198242883,-231.0,0.0002813,2]
[381439698,1756198242893,-238.0,0.00028174,2]
[381439700,1756198242903,-409.47,0.000282,7]
[381439702,1756198242913,-1062.2,0.00028219,7]
[381439705,1756198242925,-1000.0,0.00028272,2]
[381439706,1756198242935,-238.0,0.00028319,2]
[381439708,1756198242945,-2752.62820139,0.00028369,2]
[381439711,1756198242957,-700.0,0.0002837,2]
[381439713,1756198242967,-23191.73093013,0.00028384,9]
[381439715,1756198242977,-14058.32,0.000284,2]
[381439717,1756198242987,-231.0,0.0002842,2]
[381439719,1756198242997,-150.13,0.0002842,2]
[381439721,1756198243007,-344.2,0.000285,2]
[381439723,1756198243019,-152.92,0.00028526,2]
[381439725,1756198243029,-15127.0,0.00028536,2]
[381439727,1756198243039,-204.0,0.0002856,30]
[381439729,1756198243049,-1057.85,0.000286,30]
[381439731,1756198243059,-504.0,0.00028621,5]
[381439733,1756198243070,-1500.0,0.00028622,5]
[381439735,1756198243080,-996.95326902,0.00028622,5]
[381439737,1756198243089,-231.0,0.0002871,2]
[381439739,1756198243100,-1077.51973177,0.00028731,2]
[381439741,1756198243110,-238.0,0.0002874,2]
[381439743,1756198243120,-238.0,0.0002874,2]
[381439745,1756198243131,-308.95,0.000288,2]
[381439747,1756198243141,-238.0,0.00028855,2]
[381439750,1756198243151,-163.38670319,0.00028877,30]
[381439752,1756198243161,-1062.2,0.00028904,9]
[381439755,1756198243171,-238.0,0.00028954,7]
[381439758,1756198243181,-700.0,0.0002897,2]
[381439760,1756198243192,-231.0,0.00029,2]
[381439762,1756198243202,-765.29016855,0.00029,2]
[381439764,1756198243212,-213.59,0.00029,2]
[381439766,1756198243223,-672.0,0.00029,30]
[381439768,1756198243232,-20000.0,0.00029,2]
[381439770,1756198243244,-335.0,0.00029,30]
[381439772,1756198243254,-23191.73093013,0.0002908,11]
[381439775,1756198243264,-238.0,0.00029098,7]
[381439777,1756198243274,-3337.95,0.000291,7]
[381439779,1756198243284,-14058.32,0.000291,2]
[381439782,1756198243294,-238.0,0.00029165,2]
[381439784,1756198243305,-238.0,0.0002919,2]
[381439786,1756198243315,-238.0,0.00029198,2]
[381439788,1756198243325,-409.47,0.000292,7]
[381439790,1756198243335,-231.0,0.0002929,2]
[381439792,1756198243345,-2204.57,0.00029329,30]
[381439795,1756198243355,-204.0,0.0002938,30]
[381439797,1756198243365,-238.0,0.00029419,2]
[381439799,1756198243375,-238.0,0.00029471,2]
[381439801,1756198243385,-300.0,0.000295,2]
[381439802,1756198243395,-231.0,0.0002958,2]
[381439803,1756198243405,-1062.2,0.00029589,11]
[381439804,1756198243416,-241.0,0.000296,2]
[381439805,1756198243426,-381.0,0.000296,2]
[381439806,1756198243436,-778.0,0.000296,2]
[381439807,1756198243446,-4000.0,0.00029664,4]
[381439808,1756198243457,-2752.62820139,0.00029683,2]
[381439809,1756198243467,-379.88773956,0.00029767,2]
[381439810,1756198243477,-23191.73093013,0.00029777,12]
[381439811,1756198243487,-14058.32,0.000298,2]
[381439812,1756198243497,-150.0,0.00029853,30]
[381439813,1756198243507,-1552.36386729,0.00029853,30]
[381439814,1756198243517,-231.0,0.0002987,2]
[381439816,1756198243527,-1057.85,0.000299,30]
[381439818,1756198243538,-168.63687505,0.00029921,2]
[381439820,1756198243548,-1077.51973177,0.00029954,2]
[381439822,1756198243558,-2000.0,0.0003,2]
[381439825,1756198243569,-150.0,0.0003,2]
[381439827,1756198243579,-164.3,0.0003,2]
[381439829,1756198243590,-1000.0,0.0003,12]
[381439831,1756198243600,-1000.0,0.0003,12]
[381439833,1756198243610,-1000.0,0.0003,12]
[381439835,1756198243621,-1000.0,0.0003,12]
[381439837,1756198243632,-672.0,0.0003,30]
[381439839,1756198243643,-335.0,0.0003,30]
[381439841,1756198243653,-435.27074848,0.00030149,2]
[381439843,1756198243662,-2543.0,0.00030207,5]
[381439845,1756198243675,-204.0,0.0003021,30]
[381439847,1756198243685,-2300.0,0.00030225,7]
[381439848,1756198243695,-900.0,0.00030225,7]
[381439849,1756198243706,-1000.0,0.00030225,7]
[381439850,1756198243716,-2031.0,0.00030249,2]
[381439851,1756198243727,-926.0,0.00030249,2]
[381439852,1756198243737,-3374.0,0.00030249,2]
[381439853,1756198243747,-1658.0,0.00030249,2]
[381439854,1756198243758,-1298.0,0.00030249,2]
[381439855,1756198243768,-599.0,0.00030249,2]
[381439856,1756198243780,-566.0,0.00030249,2]
[381439857,1756198243789,-4155.0,0.00030249,2]
[381439858,1756198243800,-718.0,0.00030249,2]
[381439859,1756198243812,-21104.0,0.00030249,2]
[381439860,1756198243823,-1062.2,0.00030273,13]
[381439861,1756198243833,-150.0,0.000303,5]
[381439862,1756198243843,-409.47,0.000303,30]
[381439863,1756198243854,-731.50777169,0.000304,2]
[381439864,1756198243863,-23191.73093013,0.00030474,14]
[381439865,1756198243874,-300.0,0.000305,3]
[381439866,1756198243894,-211.2,0.00030636,120]
[381439867,1756198243907,-2204.57,0.00030795,30]
[381439869,1756198243917,-14058.32,0.000308,2]
[381439871,1756198243927,-500.0,0.00030808,2]
[381439873,1756198243938,-743.49,0.00030822,2]
[381439875,1756198243950,-270.62,0.00030822,80]
[381439878,1756198243960,-1000.0,0.00030842,2]
[381439880,1756198243970,-250.0,0.00030848,5]
[381439882,1756198243981,-159.9235536,0.0003088,2]
[381439884,1756198243992,-1062.2,0.00030958,15]
[381439886,1756198244002,-150.0,0.0003097,2]
[381439887,1756198244012,-674081.3738861,0.0003098,2]
[381439889,1756198244023,-1188.04,0.00030986,15]
[381439892,1756198244035,-2752.62820139,0.00030997,2]
[381439893,1756198244046,-200.0,0.00031,2]
[381439895,1756198244056,-672.0,0.00031,30]
[381439897,1756198244066,-8595.56,0.00031,7]
[381439899,1756198244076,-458.7662338,0.00031,30]
[381439901,1756198244086,-335.0,0.00031,30]
[381439903,1756198244096,-204.0,0.0003104,30]
[381439906,1756198244107,-731.50777169,0.00031045,2]
[381439908,1756198244117,-2300.0,0.00031047,7]
[381439910,1756198244127,-900.0,0.00031047,7]
[381439911,1756198244136,-1000.0,0.00031047,7]
[381439914,1756198244146,-1188.04,0.00031086,15]
[381439916,1756198244156,-23191.73093013,0.00031171,15]
[381439918,1756198244168,-1077.51973177,0.00031178,2]
[381439920,1756198244178,-1188.04,0.00031186,15]
[381439922,1756198244188,-1057.85,0.000312,30]
[381439924,1756198244198,-1188.04,0.00031286,15]
[381439926,1756198244208,-450.0,0.00031321,2]
[381439928,1756198244218,-1188.04,0.00031386,15]
[381439930,1756198244228,-504.0,0.00031476,8]
[381439932,1756198244237,-1188.04,0.00031486,15]
[381439934,1756198244247,-300.0,0.000315,5]
[381439936,1756198244257,-8595.56,0.000315,7]
[381439937,1756198244267,-14058.32,0.000315,2]
[381439940,1756198244276,-1188.04,0.00031586,15]
[381439942,1756198244286,-409.47,0.000316,30]
[381439944,1756198244297,-1062.2,0.00031643,17]
[381439946,1756198244307,-1188.04,0.00031686,15]
[381439948,1756198244317,-731.50777169,0.0003169,2]
[381439949,1756198244328,-4000.0,0.00031698,4]
[381439951,1756198244338,-168.63687505,0.00031773,2]
[381439953,1756198244347,-150.0,0.00031782,2]
[381439955,1756198244357,-150.0,0.00031782,2]
[381439957,1756198244366,-150.0,0.00031782,2]
[381439959,1756198244376,-500.0,0.00031782,2]
[381439961,1756198244386,-500.0,0.00031782,2]